Cogmind - Beta 15 @@@ ROGUE MODE // 2025.05.18 @ 17:58:34 Player: Cess183 Result: Destroyed by X-72 Disruptor with Improved Arc Projector Performance ------------- Evolutions (4) 2000 Regions Visited (6) 1200 Robots Destroyed (64) 320 Value Destroyed (1601) 1601 Prototype IDs (2) 40 Alien Tech Used (0) 0 Bonus (1114) 1114 TOTAL SCORE: 6275 Bonus ------- High Alert Combat Kills 70 Follower Combat Kills 444 Met Imprinter 300 Was Imprinted 300 Cogmind --------- Core Integrity 0/850 Matter 235/300 Energy 150/150 System Corruption 5% Temperature Cool (0) Movement Core (850) Ox16 Location -6/Factory Parts ------- > --- POWER (2) -------- Micro Nuclear Core (fused) > --- PROPULSION (4) --- (None) > --- UTILITY (6) ------ High-capacity Storage Unit Signal Interpreter Advanced Targeting Computer Target Analyzer Makeshift Hacking Suite Improved Hacking Suite > --- WEAPON (3) ------- Shock Rifle Improved Datajack > --- INVENTORY (20) --- Improved Sensor Array Advanced Signal Interpreter Improved Terrain Scanner Transport Network Coupler Remote Datajack Peak State ------------ > --- POWER ------------ Cooled Ion Engine Light Nuclear Core > --- PROPULSION ------- Armored Treads Medium Treads Medium Treads Improved Medium Treads > --- UTILITY ---------- High-capacity Storage Unit Signal Interpreter Advanced Terrain Scanner Makeshift Hacking Suite Makeshift System Shield Z-Drone Bay > --- WEAPON ----------- Makeshift Hammer Great Axe > --- INVENTORY -------- Ion Engine Cooled Ion Engine Improved Sensor Array Advanced Signal Interpreter Improved Terrain Scanner Transport Network Coupler Advanced Targeting Computer Improved Light Armor Plating Heavy Assault Rifle Improved Datajack Remote Datajack [Rating: 54] Favorites ----------- Power Cooled Ion Engine Engine Cooled Ion Engine Power Core Micro Nuclear Core Propulsion Aluminum Leg Treads Light Treads Leg Aluminum Leg Utility Signal Interpreter Device Improved Sensor Array Storage Medium Storage Unit Processor Signal Interpreter Hackware Makeshift Hacking Suite Protection Improved Light Armor Plating Weapon Makeshift Hammer Energy Gun Medium Laser Ballistic Gun Improved Assault Rifle Launcher Grenade Launcher Impact Weapon Makeshift Hammer Slashing Weapon Great Axe Special Melee Weapon Improved Datajack Build | -11 -10 -9 -9 -7 -6 -6 ------- Run | Yrd Mat Mat Min Zio Pro Fac Slots Evolved 8 | . . 2 . . . 6 Power 1 | . . . . . . 1 Propulsion 2 | . . 1 . . . 1 Utility 4 | . . 1 . . . 3 Weapon 1 | . . . . . . 1 Parts Attached 51 | 7 2 12 4 . 9 17 Power 7 | 1 1 1 . . . 4 Engine 5 | 1 1 1 . . . 2 Core 2 | . . . . . . 2 Reactor . | . . . . . . . Propulsion 14 | 2 . 4 3 . 4 1 Treads 9 | 2 . 2 . . 4 1 Leg 5 | . . 2 3 . . . Wheel . | . . . . . . . Hover . | . . . . . . . Flight . | . . . . . . . Utility 20 | 2 1 3 . . 4 10 Device 6 | 1 . 1 . . 1 3 Storage 3 | 1 1 . . . . 1 Processor 4 | . . 1 . . 1 2 Hackware 3 | . . . . . . 3 Protection 4 | . . 1 . . 2 1 Artifact . | . . . . . . . Weapon 10 | 2 . 4 1 . 1 2 Energy Gun 2 | 1 . . . . . 1 Energy Cannon . | . . . . . . . Ballistic Gun 4 | 1 . 3 . . . . Ballistic Cannon . | . . . . . . . Launcher 1 | . . 1 . . . . Special Weapon . | . . . . . . . Impact Weapon 1 | . . . 1 . . . Slashing Weapon 1 | . . . . . 1 . Piercing Weapon . | . . . . . . . Special Melee Weapon 1 | . . . . . . 1 Unidentified Prototypes 2 | . . 2 . . . . Parts Lost 25 | . . 4 1 . 5 15 Power 4 | . . . . . . 4 Propulsion 7 | . . 2 . . 1 4 Utility 8 | . . . . . 3 5 Weapon 6 | . . 2 1 . 1 2 Highest Loss Streak 7 | . . 1 1 . 2 7 To Critical Strikes . | . . . . . . . Average Backups 8 | 3 7 9 9 10 9 7 Power 1 | . . 1 2 2 2 . Propulsion . | . . . . . . . Utility 5 | . 4 5 6 6 5 4 Weapon 1 | 1 2 2 1 1 1 . Tool/Special . | . . . . . . . Unused Backups 8 | . 1 1 . 3 . 3 Power 1 | . 1 . . . . . Propulsion . | . . . . . . . Utility 3 | . . . . 1 . 2 Weapon 3 | . . 1 . 2 . . Tool/Special 1 | . . . . . . 1 Average Slot Usage (%) 91 | . 100 98 100 100 97 72 Engine 10 | . 14 11 11 11 11 8 Treads 11 | . 28 31 . . 11 12 Leg 14 | . . . 32 33 20 . Device 8 | . 14 11 11 11 9 3 Storage 9 | . 14 11 11 11 11 6 Processor 7 | . . 6 11 11 1 9 Hackware 3 | . . . . . . 11 Protection 2 | . . 4 . . 9 3 Energy Gun 2 | . 14 2 . . . 1 Ballistic Gun 8 | . 14 16 13 11 4 2 Impact Weapon 6 | . . . 8 11 11 3 Slashing Weapon 1 | . . . . . 6 3 Peak Build Rating 54 | 7 8 17 19 20 31 54 Average Rating 22 | 5 7 14 18 19 24 34 On Entrance 14 | . 7 8 16 19 20 29 Naked Turns . | . . . . . . . Heaviest Build 65 | 15 20 26 25 25 29 65 Greatest Support 106 | 40 40 60 30 30 76 106 Greatest Overweight (x) 20 | . . 2 1 . 1 20 Average Overweight (x) . | . . . . . . 2 Largest Inventory Capacity 20 | 8 10 10 10 10 10 20 Average Capacity 12 | 7 9 10 10 10 10 19 Most Carried 12 | 4 10 10 10 10 10 12 Average Carried 8 | 3 7 9 9 9 9 7 Final Capacity 20 | 8 10 10 10 10 10 20 Final Carried 10 | 4 10 10 10 10 9 5 Class Distribution -------------------- 58% | Scavenger-Mutant 27% | Mutant 14% | Hacker-Mutant Dominant Class ---------------- Mutant | -10/Materials Mutant | -9/Materials Scavenger-Mutant | -9/Mines Scavenger-Mutant | -7/Zion Scavenger-Mutant | -6/Proximity Caves Hacker-Mutant | -6/Factory Resources | -11 -10 -9 -9 -7 -6 -6 ----------- Run | Yrd Mat Mat Min Zio Pro Fac Matter Collected 1253 | 296 140 311 126 16 166 198 Remotely . | . . . . . . . Salvage Created 2117 | 151 360 617 256 . 236 497 Parts 134 | 17 25 39 13 . 12 28 Haulers Intercepted 2 | . 1 1 . . . . Recyclers Shooed 2 | 1 . 1 . . . . Parts Field Recycled . | . . . . . . . Retrieved Matter . | . . . . . . . Parts Self-Destructed 27 | . . . . . 27 . Prevented 9 | . . . . . 9 . Kills | -11 -10 -9 -9 -7 -6 -6 ------- Run | Yrd Mat Mat Min Zio Pro Fac Combat Hostiles Destroyed 42 | . 9 11 6 . 5 11 Melee 15 | . . . 2 . 4 9 Guns 21 | . 9 6 3 . 1 2 AOE 5 | . . 5 . . . . Classes Destroyed 12 | 2 5 4 . . . 1 Worker 3 | . . 2 . . . 1 Builder 3 | . . 2 . . . 1 Tunneler 6 | 5 . 1 . . . . Hauler 2 | . 1 1 . . . . Recycler 5 | 1 . 2 1 . . 1 Operator 1 | . 1 . . . . . Watcher 2 | . 1 1 . . . . Swarmer 15 | . 3 . 2 . 2 8 Grunt 20 | . 6 9 4 . 1 . Brawler 2 | . . 1 . . 1 . Sentry 3 | . . 1 . . 1 1 Programmer 2 | . . . . . . 2 Best Kill Streak 11 | 2 4 11 3 . 2 6 Combat Bots Only 6 | . 4 6 3 . 2 4 Max Kills in Single Turn 3 | 1 1 3 1 . 1 1 Gunslinging . | . . . . . . . Exploded 2 | . . 2 . . . . Melee 1 | . . . 1 . 1 1 Uniques/NPCs Destroyed . | . . . . . . . Combat | -11 -10 -9 -9 -7 -6 -6 -------- Run | Yrd Mat Mat Min Zio Pro Fac Hostile Shots Fired 480 | . 44 53 26 . 68 289 Missed 138 | . 10 11 8 . 21 88 Hits 342 | . 34 42 18 . 47 201 Melee 4 | . . 1 . . 3 . Projectile 338 | . 34 41 18 . 44 201 Critical Strikes 10 | . 1 . . . 3 6 Damage Taken 4473 | . 383 625 233 . 722 2510 Core 1018 | . 27 90 13 . 33 855 Absorbed by Shields . | . . . . . . . Redirected to Shielding 10 | . . 10 . . . . Regen/Repaired (Parts) 20 | . . . . 20 . . Core Remaining (%) 85 | 100 89 . . . 66 . Volleys Fired 121 | 12 40 35 5 . 15 14 Largest 2 | 2 2 2 2 . 1 2 Hottest 73 | 70 70 73 53 . 23 73 Shots Fired 213 | 24 80 67 10 . 15 17 Gun 202 | 24 80 57 9 . 15 17 Cannon . | . . . . . . . Launcher 11 | . . 10 1 . . . Special . | . . . . . . . Kinetic 132 | 12 40 42 9 . 15 14 Thermal 67 | 12 40 15 . . . . Explosive 11 | . . 10 1 . . . Electromagnetic 3 | . . . . . . 3 Robot Hit Streak 14 | 3 13 14 6 . 3 5 Robot Miss Streak 4 | 3 4 3 1 . 1 1 Penetration Max . | . . . . . . . Secondary Targets 3 | . 1 1 1 . . . Max Gunslinging Chain 1 | . 1 1 1 . . . Shots Hit Robots 193 | 11 50 42 13 . 21 56 Core Hits 101 | 7 21 38 7 . 10 18 Critical Kills . | . . . . . . . Critical Parts Destroyed . | . . . . . . . Critical Strikes 6 | . 1 . . . 1 4 Burn 1 | . 1 . . . . . Corrupt 1 | . . . . . . 1 Sever 4 | . . . . . 1 3 Melee Attacks 92 | . . . 14 . 20 58 Impact 35 | . . . 14 . 13 8 Slashing 48 | . . . . . 7 41 Piercing . | . . . . . . . Sneak Attacks 5 | . . . 1 . . 4 Combat Hostiles . | . . . . . . . Follow-up Attacks 7 | . . . . . . 7 Damage Inflicted 4827 | 148 638 1182 511 . 576 1772 Guns 1764 | 148 630 520 87 . 169 210 Cannons . | . . . . . . . Explosions 709 | . . 658 51 . . . Melee 2342 | . . . 373 . 407 1562 Ramming 12 | . 8 4 . . . . Kinetic 1197 | 62 309 396 87 . 169 174 Thermal 531 | 86 321 124 . . . . Explosive 709 | . . 658 51 . . . Electromagnetic 36 | . . . . . . 36 Impact 847 | . . . 373 . 176 298 Slashing 1495 | . . . . . 231 1264 Piercing . | . . . . . . . Highest Corruption 5 | . . 2 2 2 5 5 Average Corruption 3 | . . 2 2 2 5 2 Corruption Purged . | . . . . . . . Corruption Blocked . | . . . . . . . Effects 50 | . . 4 6 1 20 19 Message Errors 9 | . . . 1 1 2 5 Matter Fused 15 | . . 1 3 . 7 4 Heat Flow Errors 4 | . . 1 . . 3 . Energy Discharges 4 | . . . 1 . 2 1 Parts Rejected 1 | . . . . . . 1 Parts Fused 1 | . . . . . . 1 Data Loss (minor) 8 | . . . 1 . 4 3 Data Loss (major) 3 | . . 1 . . . 2 Misfires 4 | . . 1 . . 1 2 Weapon Failures 1 | . . . . . 1 . Overload Shots . | . . . . . . . Overflow Damage 278 | . . 9 116 . . 153 Projectiles . | . . . . . . . Explosions 9 | . . 9 . . . . Melee 269 | . . . 116 . . 153 Knockbacks 2 | . 1 . 1 . . . Impact 2 | . 1 . 1 . . . Kinetic . | . . . . . . . Secondary . | . . . . . . . Self-Inflicted Damage 131 | . . 100 31 . . . Shots 4 | . . 3 1 . . . Rammed 3 | . 2 . . . . 1 Targets Rammed 4 | . 2 1 . . . 1 Kicked . | . . . . . . . Crushed 1 | . . 1 . . . . Highest Temperature 269 | 27 195 264 14 . 269 . Average Temperature 39 | 11 40 33 8 . 83 . Received Heat Transfer 954 | . 186 276 90 . 186 216 Siege Activations . | . . . . . . . Martial Activations . | . . . . . . . Shielding Activations . | . . . . . . . Robots Disrupted . | . . . . . . . Combat Hostiles . | . . . . . . . Robots Corrupted 2 | . . . 2 . . . Combat Hostiles 1 | . . . 1 . . . Parts Fried 5 | . . . 2 . . 3 Impact Corruptions 6 | . . . 4 . . 2 Robots Melted . | . . . . . . . Combat Hostiles . | . . . . . . . Parts Melted 4 | . 1 3 . . . . Heat Transferred 1665 | 259 1036 370 . . . . Parts Sabotaged . | . . . . . . . Parts Stolen . | . . . . . . . Parts Stripped . | . . . . . . . Power Chain Reactions . | . . . . . . . Alert | -11 -10 -9 -9 -7 -6 -6 ------- Run | Yrd Mat Mat Min Zio Pro Fac Maximum Alert Level 3 | . . . . . . 3 Low Security (%) 53 | 100 100 100 100 . . . Level 1 21 | . . . . . . 47 Level 2 18 | . . . . . . 41 Level 3 5 | . . . . . . 11 Level 4 . | . . . . . . . Level 5 . | . . . . . . . High Security . | . . . . . . . Max Security . | . . . . . . . Peak Influence 807 | 5 105 190 134 . . 807 Initial 807 | . . 7 67 . . 807 Average 215 | . 27 32 84 . . 422 Influence Increases 2686 | 30 272 405 227 . 567 1185 Destroy 0b10 Robot/C 1100 | . 180 220 120 . 360 220 Destroy 0b10 Robot/NC 120 | 30 15 45 5 . 10 15 Destroy Leader 188 | . 44 44 20 . 30 50 Allied During Kill 62 | . . . . . 62 . Successful Hack 11 | . 2 9 . . . . Disable Machine 45 | . 15 30 . . . . Destroy Structure 65 | . 1 57 7 . . . Advance Influence 750 | . . . . . . 750 Lose Combat Pursuer 345 | . 15 . 75 . 105 150 Influence Decreases 2492 | 30 254 249 371 30 475 1083 Entered New Map 183 | . . 11 107 30 . 35 Time Decay 1709 | 30 254 198 254 . 375 598 Search Patrol Dispatched 300 | . . . . . . 300 Lost Part 240 | . . 40 10 . 40 150 Lost Ally 60 | . . . . . 60 . Squads Dispatched 6 | . 2 . . . 1 3 Investigation . | . . . . . . . Extermination 2 | . . . . . . 2 Reinforcement 3 | . 2 . . . . 1 Assault 1 | . . . . . 1 . Garrison . | . . . . . . . Intercept . | . . . . . . . Searches Triggered 2 | . . . . . . 2 Construction Impeded . | . . . . . . . Haulers Reinforced . | . . . . . . . Active Scanning Responses . | . . . . . . . Cargo Convoy Interrupts 1 | . . . . . . 1 Stealth | -11 -10 -9 -9 -7 -6 -6 --------- Run | Yrd Mat Mat Min Zio Pro Fac Distress Signals 6 | . 3 1 . . 2 . Communications Jammed . | . . . . . . . Distress Signals . | . . . . . . . Times Spotted 88 | . 17 14 11 . 26 20 Peak Tracking Total 7 | . 5 7 3 . 5 4 Tactical Retreats 15 | . 1 . 4 . 4 6 Traps | -11 -10 -9 -9 -7 -6 -6 ------- Run | Yrd Mat Mat Min Zio Pro Fac Traps Triggered . | . . . . . . . Indirectly . | . . . . . . . Trap Hack Attempts . | . . . . . . . Triggered . | . . . . . . . Disarmed . | . . . . . . . Reprogrammed . | . . . . . . . Reused . | . . . . . . . Traps Extracted . | . . . . . . . Installed . | . . . . . . . Triggered . | . . . . . . . Machines | -11 -10 -9 -9 -7 -6 -6 ---------- Run | Yrd Mat Mat Min Zio Pro Fac Machines Disabled 4 | . 1 3 . . . . Max in Single Turn 1 | . 1 1 . . . . Machines Repaired . | . . . . . . . Machines Dismantled . | . . . . . . . Machines Sabotaged . | . . . . . . . Overloaded Fab Kills . | . . . . . . . Hacking | -11 -10 -9 -9 -7 -6 -6 --------- Run | Yrd Mat Mat Min Zio Pro Fac Machines Accessed 8 | . 3 2 . 1 . 2 Terminals 4 | . 2 1 . . . 1 Fabricators . | . . . . . . . Repair Stations . | . . . . . . . Recycling Units 2 | . 1 . . . . 1 Scanalyzers 1 | . . 1 . . . . Garrison Access . | . . . . . . . Total Hacks 23 | . 5 14 . 2 . 2 Successful 20 | . 4 13 . 2 . 1 Failed 3 | . 1 1 . . . 1 Catastrophic 1 | . 1 . . . . . Database Lockouts . | . . . . . . . Manual 13 | . 3 1 . 1 . 8 Terminals 4 | . 2 1 . . . 1 Fabricators . | . . . . . . . Repair Stations . | . . . . . . . Recycling Units 4 | . 3 . . . . 1 Scanalyzers 13 | . . 13 . . . . Garrison Access . | . . . . . . . Terminal Hacks 5 | . 1 1 . 2 . 1 Part Schematic 2 | . . . . 2 . . Open DSF 1 | . . . . . . 1 Zone Layout 2 | . 1 1 . . . . Fabricator Hacks . | . . . . . . . Repair Station Hacks . | . . . . . . . Recycling Unit Hacks . | . . . . . . . Scanalyzer 12 | . . 12 . . . . Insert Component 6 | . . 6 . . . . Analyze 6 | . . 6 . . . . Garrison Access Hacks . | . . . . . . . Unauthorized Hacks . | . . . . . . . Terminals . | . . . . . . . Fabricators . | . . . . . . . Repair Stations . | . . . . . . . Recycling Units . | . . . . . . . Scanalyzers . | . . . . . . . Garrison Access . | . . . . . . . Data Cores Recovered . | . . . . . . . Used . | . . . . . . . Hacking Detections 4 | . 1 2 . . . 1 Full Trace Events . | . . . . . . . Feedback Events . | . . . . . . . Feedback Blocked . | . . . . . . . Robot Schematics Acquired . | . . . . . . . Robots Built . | . . . . . . . Authchips . | . . . . . . . Time . | . . . . . . . Total Robot Build Rating . | . . . . . . . Part Schematics Acquired 8 | . . 6 . 2 . . Parts Built . | . . . . . . . Authchips . | . . . . . . . Time . | . . . . . . . Total Part Build Rating . | . . . . . . . Parts Repaired . | . . . . . . . Time . | . . . . . . . Parts Recycled . | . . . . . . . Recycled Matter . | . . . . . . . Retrieved Matter . | . . . . . . . Retrieved Components . | . . . . . . . Parts Scanalyzed 6 | . . 6 . . . . Part Schematics Acquired 6 | . . 6 . . . . Parts Damaged . | . . . . . . . Bothacking | -11 -10 -9 -9 -7 -6 -6 ------------ Run | Yrd Mat Mat Min Zio Pro Fac Used RIF Installer . | . . . . . . . Robots Hacked 2 | . . . . . . 2 Non-combat . | . . . . . . . Combat 2 | . . . . . . 2 Robot Hacks Applied 2 | . . . . . . 2 parse_system 2 | . . . . . . 2 Relay Couplers Released . | . . . . . . . Fabnet Peak Effective % . | . . . . . . . Robots Rewired 1 | . . . . . 1 . Allies Hacked . | . . . . . . . Hacks Repelled . | . . . . . . . Allies | -11 -10 -9 -9 -7 -6 -6 -------- Run | Yrd Mat Mat Min Zio Pro Fac Total Allies 5 | . . . . 4 1 . Largest Group 4 | . . . . 4 4 . Highest-Rated Group 151 | . . . . 151 151 . Highest-Rated Ally 39 | . . . . 39 39 . Zionite Dispatches 1 | . . . . . . 1 Recon 1 | . . . . . . 1 Total Orders . | . . . . . . . Ally Attacks 59 | . . . . . 59 . Total Damage 1414 | . . . . . 1414 . Kills 16 | . . . . . 16 . Allies Corrupted . | . . . . . . . Allies Melted . | . . . . . . . Intel | -11 -10 -9 -9 -7 -6 -6 ------- Run | Yrd Mat Mat Min Zio Pro Fac Active Infowar (turns) 5592 | 12 773 617 555 1839 861 935 Sensors 3602 | . . 347 555 1839 861 . Terrain 935 | . . . . . . 935 Seismic 1055 | 12 773 270 . . . . Robot Analysis Total . | . . . . . . . Derelict Logs Recovered 2 | . . . 2 . . . Drone Launches 2 | . . . . . . 2 Drone Recoveries 1 | . . . . . . 1 Exploration | -11 -10 -9 -9 -7 -6 -6 ------------- Run | Yrd Mat Mat Min Zio Pro Fac Turns Passed 7042 | 296 773 619 555 1839 1042 1918 Spaces Moved 3955 | 157 392 267 399 1499 647 594 Core 98 | 5 . . . . . 93 Treads 1556 | 152 392 256 . . 255 501 Legs 2301 | . . 11 399 1499 392 . Wheels . | . . . . . . . Hover . | . . . . . . . Flight . | . . . . . . . Fastest Speed 50 | 50 160 160 120 120 120 162 Average Speed 156 | 156 160 161 121 120 143 281 Slowest Speed 1050 | 160 160 260 190 120 250 1050 Overloaded Moves . | . . . . . . . Propulsion Burnouts . | . . . . . . . Robots Hopped . | . . . . . . . Potential Cave-ins . | . . . . . . . Cave-ins Triggered . | . . . . . . . Exploration Rate (%) 41 | 7 50 20 58 89 57 12 Regions Visited 6 Branch Regions 3 Pre-discovered Areas 2 | . . . 1 1 . . Known Exits Taken 4 | . . 1 1 1 1 . Unknown Exits Taken 2 | 1 1 . . . . . Scrap Searched 5 | . . . . 4 1 . Spaces Dug . | . . . . . . . Terrain Destroyed 67 | . . 60 7 . . . Melee . | . . . . . . . Projectile . | . . . . . . . AOE 67 | . . 60 7 . . . Terrain Rammed . | . . . . . . . Walls Destroyed . | . . . . . . . Machines Disabled . | . . . . . . . Actions | -11 -10 -9 -9 -7 -6 -6 --------- Run | Yrd Mat Mat Min Zio Pro Fac Total 4477 | 180 458 388 447 1541 718 745 Wait 206 | . 12 63 20 35 19 57 Move 3949 | 156 391 266 398 1498 646 594 Hop . | . . . . . . . Pick Up 27 | 5 8 5 1 4 . 4 Fast Attach 23 | 6 . 6 . . 4 7 Attach 22 | 1 1 4 2 . 2 12 Detach 5 | . . 1 . . 1 3 Swap 12 | . 1 2 4 . 3 2 Drop 17 | . 3 5 3 4 1 1 Fire 121 | 12 40 35 5 . 15 14 Melee 82 | . . . 14 . 18 50 Ram 1 | . . . . . . 1 Kick . | . . . . . . . Crush 3 | . 2 1 . . . . Escape Stasis . | . . . . . . . Rewire 9 | . . . . . 9 . Trap . | . . . . . . . Miscellaneous . | . . . . . . . Route ------- -11/Scrapyard -10/Materials (discovered 4 exits: *Mat x3 / [*Min]) -9/Materials -9/Mines (discovered 2 exits: *Mat / *Zio) -7/Zion -6/Proximity Caves -6/Factory History --------- Turn | Location | Event 51 | -11/Scrapyard | Discovered new exit (range 13) 297 | -11/Scrapyard | Entered Materials 306 | -10/Materials | Build established: Mutant 441 | -10/Materials | Discovered new exit (range 7) 626 | -10/Materials | Discovered new exit (range 16) 763 | -10/Materials | Discovered new exit (range 18) 841 | -10/Materials | Discovered new exit (range 10) 1070 | -10/Materials | Entered another Materials area 1070 | -9/Materials | Evolved 2 slots: Propulsion x1, Utility x1 1596 | -9/Materials | Discovered new exit (range 14) 1687 | -9/Materials | Identified exit to Mines 1689 | -9/Materials | Entered Mines 1739 | -9/Mines | Learned 2 Materials zone layouts 1757 | -9/Mines | A weapon hastily lodged in a ceiling crevice suddenly fell to the ground 1933 | -9/Mines | Learned location of Storage (-7) 1967 | -9/Mines | Build established: Scavenger-Mutant 1967 | -9/Mines | Discovered new exit (range 13) 2024 | -9/Mines | Identified exit to Materials 2232 | -9/Mines | A Derelict revealed a hidden shortcut to a safe place 2243 | -9/Mines | Identified exit to Zion 2244 | -9/Mines | Entered Zion 2298 | -7/Zion | System corruption cleaned by Quarantine Array 2344 | -7/Zion | Learned location of Data Miner (-6) 2514 | -7/Zion | Discovered new exit (range 14) 2725 | -7/Zion | Found CR-A16's Pointy Stick 3673 | -7/Zion | Met Imprinter 3712 | -7/Zion | Imprinted 3714 | -7/Zion | Declared Zion's savior 4069 | -7/Zion | Identified exit to Proximity Caves 4083 | -7/Zion | Entered Proximity Caves 4083 | -6/Proximity Caves | Accompanied by 4 allies 4177 | -6/Proximity Caves | Spotter reported a threat 4199 | -6/Proximity Caves | Attracted the attention of an 0b10 outpost 4209 | -6/Proximity Caves | Spotter reported a threat 4262 | -6/Proximity Caves | Spotter reported a threat 4315 | -6/Proximity Caves | Spotter reported a threat 4368 | -6/Proximity Caves | Spotter reported a threat 4543 | -6/Proximity Caves | Attracted the attention of an 0b10 checkpoint 5112 | -6/Proximity Caves | Discovered new exit (range 5) 5125 | -6/Proximity Caves | Identified exit to Factory 5125 | -6/Proximity Caves | Entered Factory 5125 | -6/Factory | Evolved 6 slots: Power x1, Propulsion x1, Utility x3, Weapon x1 5475 | -6/Factory | Search patrols dispatched 5907 | -6/Factory | Build established: Hacker-Mutant 5961 | -6/Factory | Zion Recon squad teleported in 6091 | -6/Factory | Lost 4 parts (1p2n1u) 6160 | -6/Factory | Lost 7 parts (1p2n3u1w) 6175 | -6/Factory | Search patrols dispatched 6232 | -6/Factory | Core integrity fell below 50% 6353 | -6/Factory | Build established: Mutant 6368 | -6/Factory | Core integrity fell below 20% 6477 | -6/Factory | Terminal network hard line cut 6606 | -6/Factory | Cargo convoy interrupted 6776 | -6/Factory | Build established: Hacker-Mutant 7043 | -6/Factory | Destroyed by X-72 Disruptor with Improved Arc Projector Last Messages --------------- 06621_ System corrupted: Mic. Nuclear Core fused. 06622_ Acquired Target Analyzer. 06751_ VBSI6DP